[Event "*** Titled Tuesday Blitz"]
[Site "Chess.com"]
[Date "2020.11.03"]
[Round "1"]
[White "Sueetin"]
[Black "CaspiIsrael"]
[Result "0-1"]
[WhiteElo "2302"]
[BlackElo "2621"]
[TimeControl "180+1"]
[EndTime "10:09:00 PST"]
[Termination "CaspiIsrael won on time"]

1. d4 {[%clk 0:03:00.9]} 1... f5 {[%clk 0:02:59.3]} 2. Nc3 {[%clk 0:03:00.5]}
2... Nf6 {[%clk 0:02:58.4]} 3. Bg5 {[%clk 0:03:00.4]} 3... d5 {[%clk 0:02:58.9]}
4. Bxf6 {[%clk 0:02:59.9]} 4... exf6 {[%clk 0:02:59.8]} 5. e3 {[%clk 0:02:56.2]}
5... Be6 {[%clk 0:02:59.8]} 6. Nge2 {[%clk 0:02:54.6]} 6... Qd7 {[%clk
0:02:51.8]} 7. h4 {[%clk 0:02:49.4]} 7... g6 {[%clk 0:02:46.5]} 8. Qd2 {[%clk
0:02:41.6]} 8... Nc6 {[%clk 0:02:45.3]} 9. O-O-O {[%clk 0:02:40.5]} 9... Ne7
{[%clk 0:02:45.1]} 10. Kb1 {[%clk 0:02:39.4]} 10... Bf7 {[%clk 0:02:44.9]} 11.
Nf4 {[%clk 0:02:35.8]} 11... O-O-O {[%clk 0:02:38.6]} 12. Bb5 {[%clk 0:02:33.2]}
12... c6 {[%clk 0:02:38.3]} 13. Be2 {[%clk 0:02:32.3]} 13... Kb8 {[%clk
0:02:38.8]} 14. Nd3 {[%clk 0:02:31.7]} 14... Nc8 {[%clk 0:02:38.3]} 15. Na4
{[%clk 0:02:30.7]} 15... Nd6 {[%clk 0:02:37.7]} 16. Nac5 {[%clk 0:02:26.8]}
16... Qc8 {[%clk 0:02:35.8]} 17. Bf3 {[%clk 0:02:14.5]} 17... b6 {[%clk
0:02:27.7]} 18. Nb3 {[%clk 0:02:03.7]} 18... Ne4 {[%clk 0:02:17.9]} 19. Qe2
{[%clk 0:01:37.8]} 19... Bd6 {[%clk 0:02:12.1]} 20. Rc1 {[%clk 0:01:29.5]} 20...
Rhe8 {[%clk 0:02:09.4]} 21. g3 {[%clk 0:01:26.3]} 21... Qa6 {[%clk 0:01:51.8]}
22. Qf1 {[%clk 0:01:24.2]} 22... Qb5 {[%clk 0:01:48.1]} 23. Ka1 {[%clk
0:01:21.1]} 23... a5 {[%clk 0:01:47.5]} 24. Be2 {[%clk 0:01:20.5]} 24... Qa4
{[%clk 0:01:24.7]} 25. Nf4 {[%clk 0:01:10.4]} 25... Bxf4 {[%clk 0:00:50.3]} 26.
gxf4 {[%clk 0:01:09.2]} 26... Nd6 {[%clk 0:00:44.7]} 27. Nd2 {[%clk 0:00:54.8]}
27... Qb4 {[%clk 0:00:41.9]} 28. c3 {[%clk 0:00:51.3]} 28... Qa4 {[%clk
0:00:40.7]} 29. b3 {[%clk 0:00:48.1]} 29... Qa3 {[%clk 0:00:40.4]} 30. Nb1
{[%clk 0:00:48.1]} 30... Qxc1 {[%clk 0:00:40.2]} 31. Qxc1 {[%clk 0:00:47.3]}
31... Ne4 {[%clk 0:00:41.1]} 32. Rf1 {[%clk 0:00:42.6]} 32... Rc8 {[%clk
0:00:40.3]} 33. Bd3 {[%clk 0:00:39.3]} 33... Nd6 {[%clk 0:00:39.7]} 34. Qd2
{[%clk 0:00:36.9]} 34... Kb7 {[%clk 0:00:38.8]} 35. Rh1 {[%clk 0:00:35.7]} 35...
h5 {[%clk 0:00:38.4]} 36. Rg1 {[%clk 0:00:35.3]} 36... c5 {[%clk 0:00:38.1]} 37.
Na3 {[%clk 0:00:33.2]} 37... c4 {[%clk 0:00:37.2]} 38. bxc4 {[%clk 0:00:33]}
38... dxc4 {[%clk 0:00:37.2]} 39. Bc2 {[%clk 0:00:33.2]} 39... b5 {[%clk
0:00:36.2]} 40. Rb1 {[%clk 0:00:29.6]} 40... Ka6 {[%clk 0:00:36]} 41. Qe2 {[%clk
0:00:18.5]} 41... Bd5 {[%clk 0:00:35.6]} 42. Qd2 {[%clk 0:00:13.4]} 42... Rb8
{[%clk 0:00:33.3]} 43. Rg1 {[%clk 0:00:12.2]} 43... Rg8 {[%clk 0:00:33]} 44. Nb1
{[%clk 0:00:09]} 44... b4 {[%clk 0:00:32.1]} 45. Qd1 {[%clk 0:00:08.1]} 45...
Rb7 {[%clk 0:00:29.3]} 46. Ba4 {[%clk 0:00:08.2]} 46... Ne4 {[%clk 0:00:26.2]}
47. Qc2 {[%clk 0:00:07]} 47... Rc8 {[%clk 0:00:18.9]} 48. f3 {[%clk 0:00:07]}
48... b3 {[%clk 0:00:18.8]} 49. Qb2 {[%clk 0:00:04.9]} 49... bxa2 {[%clk
0:00:17.8]} 50. Qxa2 {[%clk 0:00:05.1]} 50... Nd6 {[%clk 0:00:16.6]} 51. Rxg6
{[%clk 0:00:05.3]} 51... Bxf3 {[%clk 0:00:15.8]} 52. Rxf6 {[%clk 0:00:05.3]}
52... Rb6 {[%clk 0:00:15.9]} 53. Qa3 {[%clk 0:00:04.7]} 53... Rd8 {[%clk
0:00:13.3]} 54. Nd2 {[%clk 0:00:05.1]} 54... Bd5 {[%clk 0:00:12.7]} 55. Qc5
{[%clk 0:00:05.1]} 55... Bb7 {[%clk 0:00:10.5]} 56. Bc2 {[%clk 0:00:04.8]} 56...
Rc8 {[%clk 0:00:10.4]} 57. Qe5 {[%clk 0:00:04.2]} 57... Rcc6 {[%clk 0:00:09.5]}
58. Bd1 {[%clk 0:00:04.4]} 58... Nb5 {[%clk 0:00:09.5]} 59. Rxc6 {[%clk
0:00:04.3]} 59... Rxc6 {[%clk 0:00:10.4]} 60. Be2 {[%clk 0:00:04.7]} 60... Nxc3
{[%clk 0:00:10.7]} 61. Bxc4+ {[%clk 0:00:04.7]} 61... Ka7 {[%clk 0:00:11.2]} 62.
Qb5 {[%clk 0:00:04.9]} 62... Nxb5 {[%clk 0:00:11.1]} 63. Bxb5 {[%clk 0:00:05.3]}
63... Rc2 {[%clk 0:00:11.1]} 64. Nc4 {[%clk 0:00:04.1]} 64... Bd5 {[%clk
0:00:10.3]} 65. Nd6 {[%clk 0:00:04]} 65... Kb6 {[%clk 0:00:09.4]} 66. Bd7 {[%clk
0:00:03.6]} 66... Rh2 {[%clk 0:00:08.3]} 67. Nxf5 {[%clk 0:00:03.4]} 67... Be4
{[%clk 0:00:06.5]} 68. Nd6 {[%clk 0:00:03]} 68... Bd3 {[%clk 0:00:06.5]} 69. f5
{[%clk 0:00:02.8]} 69... Rxh4 {[%clk 0:00:06.8]} 70. f6 {[%clk 0:00:02.8]} 70...
Rh1+ {[%clk 0:00:06.9]} 71. Kb2 {[%clk 0:00:02.2]} 71... Rf1 {[%clk 0:00:07.2]}
72. Ne8 {[%clk 0:00:01]} 72... Bg6 {[%clk 0:00:07]} 0-1

[Event "*** Titled Tuesday Blitz"]
[Site "Chess.com"]
[Date "2020.11.03"]
[Round "1"]
[White "SanchezKelvin"]
[Black "VMikhalevski"]
[Result "1/2-1/2"]
[WhiteElo "2383"]
[BlackElo "2734"]
[TimeControl "180+1"]
[EndTime "10:09:02 PST"]
[Termination "Game drawn by repetition"]

1. d4 {[%clk 0:02:59.1]} 1... Nf6 {[%clk 0:02:59.3]} 2. c4 {[%clk 0:02:58.5]}
2... g6 {[%clk 0:02:59.9]} 3. Nf3 {[%clk 0:02:58.5]} 3... Bg7 {[%clk 0:02:58.1]}
4. Nc3 {[%clk 0:02:59.4]} 4... d5 {[%clk 0:02:58.1]} 5. Bg5 {[%clk 0:02:58.4]}
5... Ne4 {[%clk 0:02:56.2]} 6. cxd5 {[%clk 0:02:58.3]} 6... Nxg5 {[%clk
0:02:54.8]} 7. Nxg5 {[%clk 0:02:59.2]} 7... e6 {[%clk 0:02:55.3]} 8. Qd2 {[%clk
0:02:59.2]} 8... h6 {[%clk 0:02:53.7]} 9. Nh3 {[%clk 0:02:49.9]} 9... exd5
{[%clk 0:02:53.2]} 10. Nf4 {[%clk 0:02:49.7]} 10... c6 {[%clk 0:02:42.9]} 11. e3
{[%clk 0:02:49.2]} 11... O-O {[%clk 0:02:42.2]} 12. Be2 {[%clk 0:02:47]} 12...
Qd6 {[%clk 0:02:38.6]} 13. h4 {[%clk 0:02:42.8]} 13... h5 {[%clk 0:02:37.4]} 14.
g4 {[%clk 0:02:31.1]} 14... hxg4 {[%clk 0:02:27.7]} 15. h5 {[%clk 0:02:30.7]}
15... g5 {[%clk 0:02:27.8]} 16. Nd3 {[%clk 0:02:23.9]} 16... f5 {[%clk
0:02:17.7]} 17. O-O-O {[%clk 0:02:20.3]} 17... Nd7 {[%clk 0:02:07.8]} 18. Rdg1
{[%clk 0:02:15.7]} 18... Bf6 {[%clk 0:02:02.4]} 19. Kb1 {[%clk 0:02:07.5]} 19...
Kh8 {[%clk 0:02:00.3]} 20. Na4 {[%clk 0:02:03.9]} 20... b6 {[%clk 0:01:49.1]}
21. Qc2 {[%clk 0:02:00.3]} 21... Bb7 {[%clk 0:01:36.6]} 22. Nc3 {[%clk
0:01:48.6]} 22... Rac8 {[%clk 0:01:31.8]} 23. Qa4 {[%clk 0:01:47.2]} 23... a6
{[%clk 0:01:29.4]} 24. h6 {[%clk 0:01:34.7]} 24... c5 {[%clk 0:01:28.5]} 25. Qa3
{[%clk 0:01:27.1]} 25... Qe7 {[%clk 0:01:21.7]} 26. dxc5 {[%clk 0:01:21.1]}
26... d4 {[%clk 0:01:12.3]} 27. exd4 {[%clk 0:01:14.7]} 27... Bxh1 {[%clk
0:01:11.6]} 28. Rxh1 {[%clk 0:01:14.3]} 28... Bxd4 {[%clk 0:01:08.8]} 29. Re1
{[%clk 0:01:12]} 29... Bxc5 {[%clk 0:01:03.2]} 30. Qxa6 {[%clk 0:01:05.8]} 30...
Bd4 {[%clk 0:00:49.9]} 31. Bxg4 {[%clk 0:01:00.6]} 31... Qf6 {[%clk 0:00:49.4]}
32. Nd5 {[%clk 0:00:56.3]} 32... Qd6 {[%clk 0:00:48.9]} 33. Bf3 {[%clk
0:00:55.3]} 33... Rfe8 {[%clk 0:00:44.7]} 34. Rd1 {[%clk 0:00:45.4]} 34... Nc5
{[%clk 0:00:43.8]} 35. Qc4 {[%clk 0:00:42.5]} 35... Ne6 {[%clk 0:00:43.4]} 36.
Qa4 {[%clk 0:00:41.5]} 36... g4 {[%clk 0:00:42.9]} 37. Bh1 {[%clk 0:00:41.3]}
37... Red8 {[%clk 0:00:34.5]} 38. N3f4 {[%clk 0:00:40.9]} 38... Bf6 {[%clk
0:00:19.7]} 39. Ng6+ {[%clk 0:00:40.2]} 39... Kh7 {[%clk 0:00:18.3]} 40. Nxf6+
{[%clk 0:00:40.2]} 40... Kxg6 {[%clk 0:00:18.7]} 41. Rxd6 {[%clk 0:00:40.1]}
41... Rxd6 {[%clk 0:00:19.4]} 42. Nd5 {[%clk 0:00:40.2]} 42... Kxh6 {[%clk
0:00:17.2]} 43. a3 {[%clk 0:00:39.8]} 43... Rc5 {[%clk 0:00:16]} 44. Nf4 {[%clk
0:00:39.7]} 44... Rd4 {[%clk 0:00:13.1]} 45. Qa7 {[%clk 0:00:33.1]} 45... Rd1+
{[%clk 0:00:11.1]} 46. Ka2 {[%clk 0:00:32.5]} 46... Nxf4 {[%clk 0:00:10]} 47.
Qxb6+ {[%clk 0:00:32.6]} 47... Kg5 {[%clk 0:00:10.6]} 48. Qxc5 {[%clk
0:00:32.4]} 48... Rxh1 {[%clk 0:00:11.2]} 49. Qe7+ {[%clk 0:00:32]} 49... Kg6
{[%clk 0:00:10.5]} 50. Qd6+ {[%clk 0:00:31]} 50... Kg5 {[%clk 0:00:10.7]} 51.
Qd8+ {[%clk 0:00:31.1]} 51... Kg6 {[%clk 0:00:10.6]} 52. Qb6+ {[%clk 0:00:28.7]}
52... Kg5 {[%clk 0:00:10.3]} 53. Qd8+ {[%clk 0:00:28]} 53... Kg6 {[%clk
0:00:08.4]} 54. Qg8+ {[%clk 0:00:28]} 54... Kf6 {[%clk 0:00:08]} 55. Qb8 {[%clk
0:00:26.1]} 55... Nh3 {[%clk 0:00:06.8]} 56. Qd6+ {[%clk 0:00:25.1]} 56... Kg5
{[%clk 0:00:06.9]} 57. Qe7+ {[%clk 0:00:19.1]} 57... Kg6 {[%clk 0:00:07.3]} 58.
Qe6+ {[%clk 0:00:19.2]} 58... Kg5 {[%clk 0:00:07.7]} 59. Qe7+ {[%clk 0:00:19.3]}
59... Kg6 {[%clk 0:00:07.9]} 60. Qe6+ {[%clk 0:00:19.2]} 60... Kg5 {[%clk
0:00:08.4]} 61. a4 {[%clk 0:00:17.7]} 61... Rf1 {[%clk 0:00:07.4]} 62. Qe3+
{[%clk 0:00:17.3]} 62... f4 {[%clk 0:00:06.6]} 63. Qe5+ {[%clk 0:00:17.1]} 63...
Kh4 {[%clk 0:00:06.1]} 64. Qf6+ {[%clk 0:00:17.2]} 64... Kh5 {[%clk 0:00:06.5]}
65. Qf5+ {[%clk 0:00:17.3]} 65... Kh4 {[%clk 0:00:06.9]} 66. Qh7+ {[%clk
0:00:16.7]} 66... Kg5 {[%clk 0:00:06.5]} 67. Qg7+ {[%clk 0:00:15.7]} 67... Kh5
{[%clk 0:00:06.6]} 68. Qf7+ {[%clk 0:00:15.7]} 68... Kg5 {[%clk 0:00:06.8]} 69.
Qe7+ {[%clk 0:00:14.8]} 69... Kh5 {[%clk 0:00:06.4]} 70. Qe5+ {[%clk 0:00:14.5]}
70... Kh4 {[%clk 0:00:06.4]} 71. Qh8+ {[%clk 0:00:14.6]} 71... Kg5 {[%clk
0:00:06.5]} 72. Qg8+ {[%clk 0:00:15]} 72... Kh5 {[%clk 0:00:06.5]} 73. Qe8+
{[%clk 0:00:14.5]} 73... Kh4 {[%clk 0:00:06.3]} 74. Qd8+ {[%clk 0:00:13.8]}
74... Kh5 {[%clk 0:00:06.6]} 75. Qd5+ {[%clk 0:00:13.8]} 75... Kh4 {[%clk
0:00:06.9]} 76. Qd8+ {[%clk 0:00:13.7]} 76... Kh5 {[%clk 0:00:07.1]} 77. Qh8+
{[%clk 0:00:13.5]} 77... Kg5 {[%clk 0:00:07.3]} 78. Qg8+ {[%clk 0:00:11.2]}
78... Kh5 {[%clk 0:00:07.4]} 79. Qh7+ {[%clk 0:00:11.1]} 79... Kg5 {[%clk
0:00:07.7]} 80. Qg7+ {[%clk 0:00:11.5]} 80... Kh5 {[%clk 0:00:08]} 81. Qh7+
{[%clk 0:00:11.7]} 81... Kg5 {[%clk 0:00:08.1]} 1/2-1/2

[Event "*** Titled Tuesday Blitz"]
[Site "Chess.com"]
[Date "2020.11.03"]
[Round "1"]
[White "Ural_bogatyr"]
[Black "Bulldog167"]
[Result "0-1"]
[WhiteElo "2383"]
[BlackElo "2751"]
[TimeControl "180+1"]
[EndTime "10:09:03 PST"]
[Termination "Bulldog167 won by resignation"]

1. e4 {[%clk 0:02:48.8]} 1... c5 {[%clk 0:02:59.1]} 2. Nf3 {[%clk 0:02:38.3]}
2... d6 {[%clk 0:02:58.2]} 3. d4 {[%clk 0:02:38.1]} 3... cxd4 {[%clk 0:02:59.1]}
4. Qxd4 {[%clk 0:02:38.2]} 4... Nf6 {[%clk 0:02:58.5]} 5. Nc3 {[%clk 0:02:37.7]}
5... Nc6 {[%clk 0:02:58.6]} 6. Bb5 {[%clk 0:02:37.6]} 6... Bd7 {[%clk
0:02:58.4]} 7. Bxc6 {[%clk 0:02:37.9]} 7... Bxc6 {[%clk 0:02:59.3]} 8. Bg5
{[%clk 0:02:38.4]} 8... e6 {[%clk 0:02:59.1]} 9. O-O-O {[%clk 0:02:38.3]} 9...
Be7 {[%clk 0:02:59.4]} 10. Qd3 {[%clk 0:02:37.9]} 10... Qa5 {[%clk 0:02:58.9]}
11. h4 {[%clk 0:02:37.3]} 11... h6 {[%clk 0:02:57]} 12. Bd2 {[%clk 0:02:36.9]}
12... Qa6 {[%clk 0:02:57.4]} 13. Qxa6 {[%clk 0:02:35.9]} 13... bxa6 {[%clk
0:02:58.3]} 14. Rhe1 {[%clk 0:02:33.9]} 14... O-O {[%clk 0:02:57.9]} 15. Nd4
{[%clk 0:02:34.1]} 15... Bb7 {[%clk 0:02:57.6]} 16. Bf4 {[%clk 0:02:32.5]} 16...
Rac8 {[%clk 0:02:42.4]} 17. f3 {[%clk 0:02:26.4]} 17... Rfd8 {[%clk 0:02:31]}
18. e5 {[%clk 0:02:24.1]} 18... Nh5 {[%clk 0:02:17.3]} 19. exd6 {[%clk
0:02:21.3]} 19... Bxh4 {[%clk 0:02:17.2]} 20. g3 {[%clk 0:02:20.4]} 20... Nxf4
{[%clk 0:02:10.3]} 21. gxh4 {[%clk 0:02:18.6]} 21... Rxd6 {[%clk 0:02:09.6]} 22.
Ne4 {[%clk 0:02:17.6]} 22... Rd7 {[%clk 0:01:49.6]} 23. c3 {[%clk 0:02:07.9]}
23... a5 {[%clk 0:01:27.9]} 24. Kc2 {[%clk 0:02:03.9]} 24... Rcd8 {[%clk
0:01:16.7]} 25. Nc5 {[%clk 0:01:57.8]} 25... Rc7 {[%clk 0:01:17]} 26. Nxb7
{[%clk 0:01:52.3]} 26... Rxb7 {[%clk 0:01:17.9]} 27. Nc6 {[%clk 0:01:52.4]}
27... Rxd1 {[%clk 0:01:09.8]} 28. Rxd1 {[%clk 0:01:53.3]} 28... a4 {[%clk
0:01:07]} 29. c4 {[%clk 0:01:51.4]} 29... Rc7 {[%clk 0:01:04.3]} 30. Rd6 {[%clk
0:01:44.3]} 30... Ng2 {[%clk 0:00:57.2]} 31. Kc3 {[%clk 0:01:41.4]} 31... Nxh4
{[%clk 0:00:57.2]} 32. Nd4 {[%clk 0:01:36.4]} 32... Nf5 {[%clk 0:00:54.7]} 33.
Rd8+ {[%clk 0:01:35.1]} 33... Kh7 {[%clk 0:00:54.7]} 34. Nb5 {[%clk 0:01:36]}
34... Rc6 {[%clk 0:00:50.6]} 35. Nxa7 {[%clk 0:01:34.1]} 35... Ra6 {[%clk
0:00:50.1]} 36. Nb5 {[%clk 0:01:31.5]} 36... h5 {[%clk 0:00:49.8]} 37. c5 {[%clk
0:01:27.1]} 37... h4 {[%clk 0:00:50]} 38. Kb4 {[%clk 0:01:18.6]} 38... h3 {[%clk
0:00:48]} 39. Rd2 {[%clk 0:01:19.5]} 39... g5 {[%clk 0:00:28.5]} 40. Rh2 {[%clk
0:01:18.7]} 40... Kg6 {[%clk 0:00:29.1]} 41. Rxh3 {[%clk 0:01:18.8]} 41... Ne3
{[%clk 0:00:29.4]} 42. Nd4 {[%clk 0:01:08.2]} 42... e5 {[%clk 0:00:28.5]} 43.
Kb5 {[%clk 0:01:02.2]} 43... Ra8 {[%clk 0:00:28.7]} 44. Nc6 {[%clk 0:01:02.1]}
44... f6 {[%clk 0:00:26.3]} 45. Ne7+ {[%clk 0:00:56.8]} 45... Kf7 {[%clk
0:00:26]} 46. Rh7+ {[%clk 0:00:56.1]} 46... Ke6 {[%clk 0:00:26.6]} 47. Nc6
{[%clk 0:00:55.9]} 47... Nd5 {[%clk 0:00:22.6]} 48. Kc4 {[%clk 0:00:38.8]} 48...
a3 {[%clk 0:00:21.2]} 49. b4 {[%clk 0:00:38.7]} 49... Rc8 {[%clk 0:00:15.1]} 50.
b5 {[%clk 0:00:36.8]} 50... g4 {[%clk 0:00:12.3]} 51. fxg4 {[%clk 0:00:35.8]}
51... e4 {[%clk 0:00:12.4]} 52. Kd4 {[%clk 0:00:28.9]} 52... e3 {[%clk
0:00:11.7]} 53. Ke4 {[%clk 0:00:26.2]} 53... Nc3+ {[%clk 0:00:04.7]} 54. Kxe3
{[%clk 0:00:23.4]} 54... Nxb5 {[%clk 0:00:05.3]} 55. Nd4+ {[%clk 0:00:20.5]}
55... Nxd4 {[%clk 0:00:05.7]} 56. Kxd4 {[%clk 0:00:21.4]} 56... Rg8 {[%clk
0:00:05.2]} 57. Rh4 {[%clk 0:00:19.3]} 57... Rd8+ {[%clk 0:00:05.5]} 58. Kc4
{[%clk 0:00:17.7]} 58... Rd2 {[%clk 0:00:05.8]} 59. Rh3 {[%clk 0:00:16.1]} 59...
Rxa2 {[%clk 0:00:05.3]} 60. Re3+ {[%clk 0:00:16.6]} 60... Kd7 {[%clk 0:00:05.5]}
61. Rf3 {[%clk 0:00:15.6]} 61... Rc2+ {[%clk 0:00:04.1]} 62. Kb3 {[%clk
0:00:15.4]} 62... a2 {[%clk 0:00:04.2]} 63. Rf1 {[%clk 0:00:14.3]} 63... Rg2
{[%clk 0:00:04.4]} 64. Ra1 {[%clk 0:00:12.5]} 64... Kc6 {[%clk 0:00:04.4]} 65.
Rxa2 {[%clk 0:00:12.6]} 65... Rxa2 {[%clk 0:00:04]} 66. Kxa2 {[%clk 0:00:13.5]}
66... Kxc5 {[%clk 0:00:04.7]} 67. Kb3 {[%clk 0:00:12.2]} 67... Kd4 {[%clk
0:00:05.2]} 68. Kc2 {[%clk 0:00:12.6]} 68... Ke3 {[%clk 0:00:05.7]} 69. Kc3
{[%clk 0:00:12.8]} 69... Kf4 {[%clk 0:00:05.6]} 70. Kd2 {[%clk 0:00:12.3]} 70...
Kxg4 {[%clk 0:00:06]} 71. Ke2 {[%clk 0:00:12]} 71... Kg3 {[%clk 0:00:06.4]} 72.
Ke1 {[%clk 0:00:10.6]} 72... f5 {[%clk 0:00:06.3]} 73. Ke2 {[%clk 0:00:10.7]}
73... f4 {[%clk 0:00:06.2]} 74. Kf1 {[%clk 0:00:10.8]} 74... Kf3 {[%clk
0:00:06.6]} 75. Kg1 {[%clk 0:00:11.3]} 75... Ke2 {[%clk 0:00:07.1]} 0-1

[Event "*** Titled Tuesday Blitz"]
[Site "Chess.com"]
[Date "2020.11.03"]
[Round "1"]
[White "Jeffinho023"]
[Black "MarkoPe"]
[Result "1/2-1/2"]
[WhiteElo "2543"]
[BlackElo "2225"]
[TimeControl "180+1"]
[EndTime "10:09:04 PST"]
[Termination "Game drawn - insufficient material"]

1. d4 {[%clk 0:03:00.9]} 1... Nf6 {[%clk 0:02:57]} 2. c4 {[%clk 0:02:59.3]} 2...
e6 {[%clk 0:02:57.3]} 3. Nc3 {[%clk 0:02:58.9]} 3... Bb4 {[%clk 0:02:56.2]} 4.
e3 {[%clk 0:02:59.1]} 4... O-O {[%clk 0:02:53.4]} 5. Bd3 {[%clk 0:02:58.1]} 5...
b6 {[%clk 0:02:31.2]} 6. Ne2 {[%clk 0:02:56.9]} 6... Bb7 {[%clk 0:02:31]} 7. O-O
{[%clk 0:02:56.9]} 7... d5 {[%clk 0:02:25.5]} 8. cxd5 {[%clk 0:02:53.8]} 8...
Nxd5 {[%clk 0:02:21]} 9. Qc2 {[%clk 0:02:50.8]} 9... h6 {[%clk 0:01:56.3]} 10.
e4 {[%clk 0:02:42.9]} 10... Nf6 {[%clk 0:01:44.7]} 11. a3 {[%clk 0:02:38.9]}
11... Be7 {[%clk 0:01:43]} 12. f4 {[%clk 0:02:37.3]} 12... c5 {[%clk 0:01:41.2]}
13. e5 {[%clk 0:02:36.2]} 13... Nd5 {[%clk 0:01:37.4]} 14. Ne4 {[%clk
0:02:27.1]} 14... Nc6 {[%clk 0:01:09]} 15. dxc5 {[%clk 0:02:25.2]} 15... bxc5
{[%clk 0:01:07.9]} 16. N2g3 {[%clk 0:02:14]} 16... Nd4 {[%clk 0:00:49.7]} 17.
Qd1 {[%clk 0:02:03.7]} 17... Rc8 {[%clk 0:00:45]} 18. Bc4 {[%clk 0:01:49.4]}
18... Qb6 {[%clk 0:00:41.4]} 19. b3 {[%clk 0:01:41.5]} 19... Rfd8 {[%clk
0:00:40.5]} 20. Bb2 {[%clk 0:01:40.9]} 20... Ne3 {[%clk 0:00:37.7]} 21. Qc1
{[%clk 0:00:59.2]} 21... Nxf1 {[%clk 0:00:36.1]} 22. Qxf1 {[%clk 0:00:57.5]}
22... Nxb3 {[%clk 0:00:35.1]} 23. Rb1 {[%clk 0:00:55.2]} 23... Nd2 {[%clk
0:00:27.7]} 24. Nxd2 {[%clk 0:00:54.5]} 24... Rxd2 {[%clk 0:00:27.5]} 25. Bc3
{[%clk 0:00:55]} 25... Rxg2+ {[%clk 0:00:25.7]} 26. Qxg2 {[%clk 0:00:46.8]}
26... Qxb1+ {[%clk 0:00:25.3]} 27. Qf1 {[%clk 0:00:47.2]} 27... Qxf1+ {[%clk
0:00:22.1]} 28. Kxf1 {[%clk 0:00:48.1]} 28... Bd5 {[%clk 0:00:22.3]} 29. Be2
{[%clk 0:00:45]} 29... c4 {[%clk 0:00:22.2]} 30. a4 {[%clk 0:00:44.6]} 30... Bc5
{[%clk 0:00:20.1]} 31. Ke1 {[%clk 0:00:39.6]} 31... g6 {[%clk 0:00:18.6]} 32.
Nf1 {[%clk 0:00:37.7]} 32... h5 {[%clk 0:00:18.3]} 33. Nd2 {[%clk 0:00:37.8]}
33... Be3 {[%clk 0:00:16.5]} 34. Nb1 {[%clk 0:00:33.6]} 34... Bxf4 {[%clk
0:00:16.5]} 35. h3 {[%clk 0:00:32.2]} 35... Be3 {[%clk 0:00:15.6]} 36. Na3
{[%clk 0:00:31.9]} 36... a6 {[%clk 0:00:14.4]} 37. Nc2 {[%clk 0:00:31.1]} 37...
Bf4 {[%clk 0:00:12.6]} 38. Nb4 {[%clk 0:00:30.8]} 38... a5 {[%clk 0:00:11.9]}
39. Nc2 {[%clk 0:00:27.1]} 39... h4 {[%clk 0:00:11.9]} 40. Kf1 {[%clk
0:00:26.4]} 40... Kf8 {[%clk 0:00:08.8]} 41. Bxa5 {[%clk 0:00:22.7]} 41... Bxe5
{[%clk 0:00:08.5]} 42. Bb4+ {[%clk 0:00:23.1]} 42... Kg7 {[%clk 0:00:08.6]} 43.
a5 {[%clk 0:00:23.9]} 43... Bb7 {[%clk 0:00:07.6]} 44. Ne3 {[%clk 0:00:20.2]}
44... Ba6 {[%clk 0:00:07.3]} 45. Ng4 {[%clk 0:00:19.1]} 45... Bd4 {[%clk
0:00:06.6]} 46. Ke1 {[%clk 0:00:17.1]} 46... Rc6 {[%clk 0:00:05.4]} 47. Kd1
{[%clk 0:00:17.2]} 47... c3 {[%clk 0:00:05.7]} 48. Bxa6 {[%clk 0:00:16.7]} 48...
Rxa6 {[%clk 0:00:06.6]} 49. Kc2 {[%clk 0:00:17]} 49... Rc6 {[%clk 0:00:06.1]}
50. Nh2 {[%clk 0:00:16.3]} 50... f5 {[%clk 0:00:06.1]} 51. Nf3 {[%clk
0:00:16.8]} 51... e5 {[%clk 0:00:06.6]} 52. Ng5 {[%clk 0:00:15.8]} 52... Kf6
{[%clk 0:00:06.2]} 53. Nf3 {[%clk 0:00:16.1]} 53... g5 {[%clk 0:00:06]} 54. Ba3
{[%clk 0:00:12.8]} 54... Ra6 {[%clk 0:00:05.5]} 55. Bb4 {[%clk 0:00:12.8]} 55...
Ke6 {[%clk 0:00:06.1]} 56. Ne1 {[%clk 0:00:12]} 56... Kd5 {[%clk 0:00:06]} 57.
Kb3 {[%clk 0:00:11.1]} 57... e4 {[%clk 0:00:05.7]} 58. Kc2 {[%clk 0:00:08.6]}
58... f4 {[%clk 0:00:05.7]} 59. Be7 {[%clk 0:00:09]} 59... f3 {[%clk 0:00:04.7]}
60. Bxg5 {[%clk 0:00:08.9]} 60... f2 {[%clk 0:00:04.9]} 61. Ng2 {[%clk
0:00:08.6]} 61... f1=Q {[%clk 0:00:05]} 62. Nf4+ {[%clk 0:00:08.9]} 62... Kc4
{[%clk 0:00:04.4]} 63. Bxh4 {[%clk 0:00:07.5]} 63... e3 {[%clk 0:00:03.3]} 64.
Be1 {[%clk 0:00:05.5]} 64... e2 {[%clk 0:00:03]} 65. Nd3 {[%clk 0:00:05]} 65...
Kd5 {[%clk 0:00:02.2]} 66. Nb4+ {[%clk 0:00:04.9]} 66... Kc4 {[%clk 0:00:03.1]}
67. Nd3 {[%clk 0:00:05.6]} 67... Kb5 {[%clk 0:00:03.8]} 68. Bxc3 {[%clk
0:00:05.1]} 68... Kc6 {[%clk 0:00:04.7]} 69. Bxd4 {[%clk 0:00:04.9]} 69... Kd5
{[%clk 0:00:05.5]} 70. Bc3 {[%clk 0:00:05.2]} 70... e1=Q {[%clk 0:00:05.4]} 71.
Bxe1 {[%clk 0:00:05]} 71... Rc6+ {[%clk 0:00:05.8]} 72. Kd2 {[%clk 0:00:04.8]}
72... Qg2+ {[%clk 0:00:06]} 73. Bf2 {[%clk 0:00:04.5]} 73... Qxh3 {[%clk
0:00:06]} 74. Nf4+ {[%clk 0:00:04.4]} 74... Kc4 {[%clk 0:00:04.8]} 75. Nxh3
{[%clk 0:00:05.3]} 75... Kb5 {[%clk 0:00:05]} 76. Nf4 {[%clk 0:00:03]} 76...
Kxa5 {[%clk 0:00:04.6]} 77. Bd4 {[%clk 0:00:03.6]} 77... Kb5 {[%clk 0:00:04.9]}
78. Kd3 {[%clk 0:00:04.5]} 78... Rd6 {[%clk 0:00:05.1]} 79. Ne2 {[%clk
0:00:04.6]} 79... Rxd4+ {[%clk 0:00:05.2]} 80. Nxd4+ {[%clk 0:00:05.1]} 1/2-1/2